bitfinex/quotes_SOLUSD_20250626
["timestamp","ask_amount","ask_price","bid_price","bid_amount"]
[1750956661024,0.04,142.41,142.4,137.05181043]
[1750956661224,0.04,142.41,142.4,108.04964886]
[1750956661707,0.04,142.41,142.4,108.89405762]
[1750956663027,0.04,142.41,142.4,115.65962526]
[1750956667306,0.04,142.41,142.4,124.47482031]
[1750956668808,0.04,142.41,142.4,131.24038795]
[1750956669943,0.04,142.42,142.41,19.07613357]
[1750956670115,0.04,142.42,142.41,60.96170121]
[1750956670314,0.04,142.43,142.42,108.00964886]
[1750956670634,0.04,142.43,142.42,108.71179743]
[1750956671122,0.04,142.43,142.42,115.47736507]
[1750956672224,0.04,142.43,142.42,108.71179743]
[1750956672408,0.04,142.43,142.42,108.00964886]
[1750956676228,0.04,142.43,142.42,115.61952664]
[1750956677345,0.04,142.43,142.42,117.15972664]
[1750956680848,0.01063424,142.43,142.42,117.15972664]
[1750956683335,0.01063424,142.43,142.42,124.46553552]
[1750956684629,0.04,142.44,142.43,19.07613357]
[1750956684832,0.04,142.44,142.43,144.04170121]
[1750956685451,0.04,142.44,142.43,151.06269397]
[1750956687056,0.04,142.44,142.43,144.04170121]
[1750956688949,0.04,142.44,142.43,151.06269397]
[1750956689146,0.04,142.45,142.44,115.20170121]
[1750956689351,0.04,142.45,142.44,115.90375119]
[1750956691837,0.04,142.45,142.44,115.61942805]
[1750956692158,0.04,142.45,142.44,108.85386041]
[1750956693762,0.04,142.45,142.44,115.61942805]
[1750956696743,0.04,142.45,142.44,108.85386041]
[1750956700067,0.04,142.45,142.44,115.61942805]
[1750956703764,0.04,142.45,142.44,108.85386041]
[1750956703935,0.04,142.45,142.44,115.61942805]
[1750956704139,0.04,142.45,142.44,115.90375119]
[1750956704340,0.04,142.45,142.44,122.92425104]
[1750956704550,0.04,142.46,142.45,19.07613357]
[1750956704748,0.04,142.46,142.45,54.66170121]
[1750956704964,0.04,142.47,142.46,107.96964886]
[1750956705151,0.04,142.47,142.46,108.67160028]
[1750956706263,0.04,142.47,142.46,115.43716792]
[1750956706959,0.04,142.47,142.46,115.57932949]
[1750956707267,0.04,142.47,142.46,137.63376185]
[1750956707656,0.04,142.47,142.46,144.39932949]
[1750956707854,0.04,142.47,142.46,143.69737807]
[1750956712153,0.04,142.47,142.46,150.71689231]
[1750956712369,0.04,142.47,142.46,151.00121545]
[1750956712564,0.04,142.5,142.46,151.00121545]
[1750956712565,0.04,142.5,142.47,19.07613357]
[1750956712871,0.04,142.5,142.49,25.55737807]
[1750956713064,0.04,142.5,142.49,114.87737807]
[1750956713442,0.04,142.5,142.49,115.5791817]
[1750956713884,0.04,142.5,142.49,115.86350484]
[1750956714172,0.04,142.5,142.49,26.54350484]
[1750956714774,0.04,142.5,142.49,33.56154119]
[1750956714960,0.04,142.5,142.49,26.2591817]
[1750956715276,0.04,142.5,142.49,19.49361406]
[1750956718281,0.04,142.5,142.49,0.8439652]
[1750956719582,0.04,142.5,142.49,19.49361406]
[1750956721293,0.04,142.5,142.49,26.2591817]
[1750956721462,0.04,142.5,142.49,33.56154119]
[1750956722575,0.04,142.53,142.51,19.07613357]
[1750956722765,0.04,142.53,142.52,61.1768724]
[1750956724064,0.04,142.53,142.52,157.89991618]
[1750956724382,0.04,142.53,142.52,157.19826028]
[1750956726966,0.04,142.53,142.52,150.18170121]
[1750956727272,0.04,142.53,142.52,157.19826028]
[1750956728780,0.04,142.54,142.53,19.07613357]
[1750956728981,0.04,142.54,142.53,34.49849736]
[1750956729284,0.04,142.54,142.53,123.77849736]
[1750956730795,0.04,142.54,142.53,130.79456415]
[1750956732888,0.04,142.54,142.53,116.72860658]
[1750956733088,0.04,142.54,142.53,18.64964886]
[1750956733270,0.04,142.54,142.51,6.24]
[1750956733690,0.04,142.54,142.52,18.64964886]
[1750956744409,0.04,142.54,142.52,107.92964886]
[1750956745778,8.1475,142.54,142.52,18.64964886]
[1750956748089,15.16318373,142.54,142.52,18.64964886]
[1750956749200,8.1475,142.54,142.52,18.64964886]
[1750956750507,15.16314601,142.54,142.52,18.64964886]
[1750956750707,8.1475,142.54,142.52,18.64964886]
[1750956751199,15.16313639,142.54,142.52,18.64964886]
[1750956751907,8.1475,142.54,142.52,18.64964886]
[1750956752201,15.16314378,142.54,142.52,18.64964886]
[1750956753192,15.16314378,142.54,142.49,89.28]
[1750956753426,5.17641846,142.53,142.5,18.64964886]
[1750956754505,12.19277812,142.53,142.5,18.64964886]
[1750956757226,12.19277812,142.53,142.5,18.64964886]
[1750956758543,12.19277812,142.53,142.49,89.28]
[1750956758717,5.17641846,142.52,142.49,89.28]
[1750956759030,5.17641846,142.52,142.47,18.64964886]
[1750956759322,5.17641846,142.51,142.47,18.64964886]
[1750956759493,5.17641846,142.52,142.47,18.64964886]
[1750956759697,5.17641846,142.51,142.47,18.64964886]
[1750956760000,5.17641846,142.52,142.47,18.64964886]
[1750956760197,5.17641846,142.51,142.47,18.64964886]
[1750956760501,5.17641846,142.52,142.47,18.64964886]
[1750956760903,7.01705143,142.51,142.47,18.64964886]
[1750956763030,12.19346989,142.51,142.47,18.64964886]
[1750956763236,7.01705143,142.51,142.47,18.64964886]
[1750956763411,12.19346989,142.51,142.47,18.64964886]
[1750956763612,7.01705143,142.51,142.47,18.64964886]
[1750956763938,12.19346989,142.51,142.47,18.64964886]
[1750956764136,7.01705143,142.51,142.47,18.64964886]
[1750956764936,24.55968001,142.51,142.46,89.3]
[1750956765107,24.55968001,142.51,142.46,0.02]
[1750956769112,45.63079501,142.51,142.46,0.02]
[1750956769311,5.17641846,142.5,142.46,0.02]
[1750956769521,7.01803635,142.49,142.46,0.02]
[1750956770020,1.5523,142.48,142.46,0.02]
[1750956770431,1.5523,142.48,142.44,0.02]
[1750956770632,7.16019857,142.47,142.4,89.3]
[1750956770818,7.16019857,142.47,142.4,0.02]
[1750956771016,12.33661703,142.47,142.4,0.02]
[1750956771213,0.14216157,142.45,142.4,0.02]
[1750956771414,1.6487,142.44,142.4,0.02]
[1750956771615,7.02099276,142.43,142.4,0.02]
[1750956772313,10.45830249,142.43,142.4,0.02]
[1750956774429,0.14216157,142.42,142.4,0.02]
[1750956775538,7.02197879,142.41,142.4,0.02]
[1750956775725,7.16414036,142.41,142.4,0.02]
[1750956775929,6.0826,142.4,142.36,0.02]
[1750956777416,7.02296509,142.39,142.36,0.02]
[1750956782448,1.5382,142.38,142.36,0.02]
[1750956783641,7.02395167,142.37,142.36,0.02]
[1750956789632,1.5382,142.38,142.36,0.02]
[1750956789834,7.02266365,142.4,142.36,0.02]
[1750956791246,7.02197879,142.41,142.36,0.02]
[1750956792037,14.42500074,142.42,142.36,6.78556764]
[1750956792237,12.76470074,142.42,142.36,6.78556764]
[1750956793035,12.18505023,142.44,142.39,25.4152165]
[1750956793255,7.02000702,142.45,142.39,6.76556764]
[1750956793542,7.02000702,142.45,142.39,18.64964886]
[1750956794034,7.05968654,142.46,142.41,18.64964886]
[1750956794230,7.05968654,142.46,142.41,25.4152165]
[1750956794540,7.05968654,142.46,142.41,18.64964886]
[1750956796069,12.82135117,142.46,142.41,18.64964886]
[1750956798065,12.82135117,142.46,142.39,25.4152165]
[1750956798845,12.82135117,142.46,142.37,18.64964886]
[1750956799062,12.82135117,142.46,142.38,6.76556764]
[1750956800175,30.37013679,142.46,142.38,6.76556764]
[1750956803153,30.37013679,142.46,142.37,25.4152165]
[1750956804348,30.37013679,142.46,142.38,6.76556764]
[1750956804672,12.82135117,142.46,142.38,6.76556764]
[1750956804978,12.82135117,142.46,142.41,18.64964886]
[1750956804979,0.04,142.46,142.41,18.64964886]
[1750956805159,7.05961623,142.46,142.41,18.64964886]
[1750956805473,0.04,142.46,142.42,6.76556764]
[1750956805649,0.04,142.46,142.42,96.16556764]
[1750956805848,0.04,142.46,142.42,89.4]
[1750956806046,0.04,142.46,142.43,18.64964886]
[1750956810785,0.04,142.46,142.43,25.4152165]
[1750956811275,0.04,142.46,142.43,18.64964886]
[1750956816669,0.04,142.46,142.44,18.64964886]
[1750956817158,0.04,142.46,142.44,25.4152165]
[1750956817363,0.04,142.46,142.44,6.76556764]
[1750956817663,0.04,142.46,142.44,18.64964886]
[1750956819568,0.04,142.46,142.45,18.64964886]
[1750956819891,0.04,142.46,142.45,108.04964886]
[1750956821169,0.04,142.46,142.45,114.8152165]
[1750956823195,0.04,142.46,142.45,114.95737807]
[1750956824070,0.04,142.46,142.45,108.04964886]
[1750956825385,0.04,142.46,142.45,89.4]
[1750956826300,0.04,142.46,142.43,18.64964886]
[1750956826871,0.04,142.46,142.45,6.76556764]
[1750956827081,0.04,142.46,142.45,146.06617877]
[1750956827276,0.04,142.46,142.45,145.36417807]
[1750956828385,0.04,142.46,142.45,152.38418509]
[1750956828579,0.04,142.46,142.45,152.66850823]
[1750956828782,0.04,142.52,142.46,18.79181043]
[1750956829098,0.04,142.52,142.51,18.64964886]
[1750956833110,0.04,142.52,142.51,108.04964886]
[1750956834183,0.04,142.52,142.51,114.8152165]
[1750956836300,0.04,142.52,142.51,108.04964886]
[1750956838996,0.04,142.52,142.51,18.64964886]
[1750956840182,0.04,142.52,142.5,25.4152165]
[1750956840388,0.04,142.52,142.51,18.64964886]
[1750956840886,1.635,142.52,142.41,8.41606764]
[1750956841095,1.635,142.52,142.44,6.76556764]
[1750956841701,1.635,142.52,142.45,25.4152165]
[1750956841908,7.01705143,142.51,142.45,18.64964886]
[1750956842417,8.65176074,142.52,142.45,18.64964886]
[1750956843709,8.65176074,142.52,142.44,18.64964886]
[1750956844401,13.81624091,142.52,142.44,18.64964886]
[1750956844603,8.65176074,142.52,142.44,18.64964886]
[1750956845492,13.81624091,142.52,142.44,18.64964886]
[1750956848918,8.65176074,142.52,142.45,6.76556764]
[1750956849414,13.81624091,142.52,142.45,6.76556764]
[1750956850221,13.81624091,142.52,142.47,18.64964886]
[1750956850423,13.81624091,142.52,142.45,6.76556764]
[1750956850725,13.81624091,142.52,142.45,96.16556764]
[1750956851220,5.16448017,142.51,142.46,18.64964886]
[1750956852010,5.16448017,142.51,142.44,25.4152165]
[1750956852328,12.18169303,142.51,142.44,25.4152165]
[1750956856516,12.18169303,142.51,142.44,18.64964886]
[1750956856718,5.16448017,142.5,142.41,37.37822921]
[1750956856920,5.16448017,142.49,142.42,18.64964886]
[1750956857098,5.16448017,142.5,142.42,18.64964886]
[1750956857300,5.16448017,142.49,142.42,25.4152165]
[1750956857597,5.16448017,142.5,142.42,25.4152165]
[1750956857799,5.16448017,142.49,142.42,25.4152165]
[1750956858031,5.16448017,142.5,142.42,25.4152165]
[1750956858407,5.16448017,142.49,142.42,25.4152165]
[1750956858736,7.01803635,142.49,142.42,25.4152165]
[1750956859023,12.18251652,142.49,142.42,25.4152165]
[1750956859203,7.01803635,142.49,142.42,25.4152165]
[1750956859406,12.18251652,142.49,142.42,25.4152165]
[1750956859606,7.01803635,142.49,142.42,25.4152165]
[1750956859805,12.18251652,142.49,142.42,25.4152165]
[1750956860005,7.01803635,142.49,142.42,25.4152165]
[1750956860206,12.18251652,142.49,142.42,25.4152165]
[1750956860505,7.01803635,142.49,142.42,25.4152165]
[1750956860706,12.18251652,142.49,142.42,25.4152165]
[1750956860907,7.01803635,142.49,142.42,25.4152165]
[1750956861108,12.18251652,142.49,142.42,25.4152165]
[1750956861323,7.01803635,142.49,142.42,25.4152165]
[1750956861622,12.18251652,142.49,142.42,18.64964886]
[1750956861799,13.21588017,142.48,142.41,18.64964886]
[1750956862917,20.23473335,142.48,142.41,18.64964886]
[1750956863115,15.07025318,142.48,142.41,18.64964886]
[1750956863502,20.23473335,142.48,142.41,18.64964886]
[1750956863727,15.07025318,142.48,142.41,18.64964886]
[1750956864116,20.23473335,142.48,142.41,18.64964886]
[1750956864432,15.07025318,142.48,142.41,18.64964886]
[1750956864805,20.23473335,142.48,142.41,18.64964886]
[1750956865127,15.07025318,142.48,142.41,18.64964886]
[1750956865351,20.23473335,142.48,142.41,18.64964886]
[1750956865511,15.07025318,142.48,142.41,18.64964886]
[1750956865829,20.23473335,142.48,142.41,18.64964886]
[1750956866017,15.07025318,142.48,142.41,18.64964886]
[1750956866207,20.23473335,142.48,142.41,18.64964886]
[1750956866407,15.07025318,142.48,142.41,18.64964886]
[1750956866616,20.23473335,142.48,142.41,18.64964886]
[1750956866822,15.07025318,142.48,142.41,18.64964886]
[1750956867123,20.23473335,142.48,142.41,18.64964886]
[1750956867322,15.07025318,142.48,142.41,18.64964886]
[1750956867514,20.23473335,142.48,142.41,25.4152165]
[1750956867720,15.07025318,142.48,142.41,25.4152165]
[1750956867919,13.21588017,142.48,142.43,18.64964886]
[1750956868120,8.0514,142.48,142.43,18.64964886]
[1750956868326,8.0514,142.48,142.42,18.64964886]
[1750956869019,15.06996548,142.48,142.42,18.64964886]
[1750956869735,20.23444565,142.48,142.42,18.64964886]
[1750956869919,15.06996548,142.48,142.41,18.64964886]
[1750956870118,5.16448017,142.47,142.41,18.64964886]
[1750956871435,12.18395125,142.47,142.41,18.64964886]
[1750956873522,7.01947108,142.47,142.41,18.64964886]
[1750956875446,12.18395125,142.47,142.41,18.64964886]
[1750956878646,5.16448017,142.46,142.41,18.64964886]
[1750956880123,7.02000702,142.45,142.41,18.64964886]
[1750956880324,12.18448719,142.45,142.41,18.64964886]
[1750956880535,7.02000702,142.45,142.41,18.64964886]
[1750956880731,12.18448719,142.45,142.41,18.64964886]
[1750956880932,7.02000702,142.45,142.41,18.64964886]
[1750956881145,12.18448719,142.45,142.38,0.02]
[1750956881321,6.4984,142.43,142.38,0.02]
[1750956881951,11.66288017,142.43,142.38,0.02]
[1750956882325,18.68426443,142.43,142.38,0.02]
[1750956884229,13.51978426,142.43,142.38,0.02]
[1750956884545,18.68426443,142.43,142.38,0.02]
[1750956886246,13.51978426,142.43,142.38,0.02]
[1750956886441,18.68426443,142.43,142.38,0.02]
[1750956887140,13.51978426,142.43,142.38,0.02]
[1750956887883,0.14216157,142.42,142.38,0.02]
[1750956888049,5.16448017,142.41,142.38,0.02]
[1750956888255,5.30664174,142.42,142.38,0.02]
[1750956888634,5.16448017,142.41,142.38,0.02]
[1750956889146,7.02247191,142.4,142.38,0.02]
[1750956890351,12.58117897,142.4,142.38,0.02]
[1750956891237,16.12429613,142.4,142.38,0.02]
[1750956895744,7.02247191,142.4,142.38,0.02]
[1750956896534,11.66288017,142.43,142.38,0.02]
[1750956896848,6.4984,142.43,142.38,0.02]
[1750956897557,13.51956407,142.43,142.38,0.02]
[1750956899161,17.10972618,142.43,142.38,0.02]
[1750956899460,22.60029389,142.43,142.38,0.02]
[1750956903562,0.14216157,142.42,142.38,0.02]
[1750956903864,5.30664174,142.42,142.38,0.02]
[1750956904050,7.02197879,142.41,142.38,0.02]
[1750956904755,0.14216157,142.4,142.38,0.02]
[1750956906757,7.02296509,142.39,142.38,0.02]
[1750956907543,7.02296509,142.39,142.38,0.02]
[1750956909258,12.32960683,142.39,142.38,0.02]
[1750956909644,0.14216157,142.38,142.36,0.02]
[1750956909944,0.14216157,142.38,142.35,0.02]
[1750956909945,0.14216157,142.36,142.35,0.02]
[1750956911154,7.16660663,142.36,142.35,0.02]
[1750956912057,7.02444506,142.36,142.35,0.02]
[1750956913265,7.02395167,142.37,142.35,0.02]
[1750956914752,13.49371587,142.39,142.35,0.02]
[1750956914961,7.02319279,142.39,142.35,0.02]
[1750956915467,12.18716212,142.4,142.35,0.02]
[1750956915672,13.24236217,142.41,142.35,0.02]
[1750956916379,6.22,142.41,142.35,0.02]
[1750956916680,21.26643662,142.43,142.37,6.76556764]
[1750956916851,16.10195645,142.43,142.38,18.64964886]
[1750956917370,16.10195645,142.43,142.36,14.51876764]
[1750956921368,21.26643662,142.43,142.36,14.51876764]
[1750956922782,10.61138874,142.43,142.38,18.64964886]
[1750956922989,15.77586891,142.43,142.38,18.64964886]
[1750956923199,10.61138874,142.43,142.38,18.64964886]
[1750956923759,12.18517806,142.44,142.38,18.64964886]
[1750956923958,21.41150104,142.45,142.4,18.64964886]
[1750956924187,5.16448017,142.44,142.4,18.64964886]
[1750956924591,21.41150104,142.45,142.4,18.64964886]
[1750956927091,5.16448017,142.44,142.39,18.64964886]
[1750956927293,5.16448017,142.44,142.37,25.4152165]
[1750956927667,12.18546875,142.44,142.37,25.4152165]
[1750956927989,12.18546875,142.44,142.37,18.64964886]
[1750956928370,12.18546875,142.44,142.37,25.4152165]
[1750956929991,12.18546875,142.44,142.38,6.76556764]
[1750956934296,12.1850226,142.44,142.39,6.76556764]
[1750956934501,7.02054243,142.44,142.39,6.76556764]
[1750956935180,12.1850226,142.44,142.37,25.4152165]
[1750956937702,12.1850226,142.44,142.38,6.76556764]
[1750956937912,7.02054243,142.44,142.39,6.76556764]
[1750956938402,5.16448017,142.45,142.39,6.76556764]
[1750956938708,5.16448017,142.45,142.41,18.64964886]
[1750956939003,5.16448017,142.45,142.41,6.76556764]
[1750956939506,7.02014675,142.45,142.41,18.64964886]
[1750956939881,7.02014675,142.45,142.39,6.76556764]
[1750956940280,12.76363775,142.45,142.39,6.76556764]
[1750956940603,7.02014675,142.45,142.41,18.64964886]
[1750956944103,7.02014675,142.45,142.39,18.64964886]
[1750956944493,12.18462692,142.45,142.39,18.64964886]
[1750956945320,29.73464447,142.45,142.39,18.64964886]
[1750956947295,13.41926482,142.44,142.37,18.64964886]
[1750956947500,6.80658017,142.44,142.37,25.4152165]
[1750956947704,1.6421,142.44,142.37,25.4152165]
[1750956947902,6.80658017,142.44,142.37,25.4152165]
[1750956948910,7.02099276,142.43,142.37,25.4152165]
[1750956949630,5.16448017,142.44,142.39,6.76556764]
[1750956949926,12.69020828,142.46,142.41,18.64964886]
[1750956950225,7.01973523,142.46,142.41,6.76556764]
[1750956950420,7.01973523,142.46,142.41,18.64964886]
[1750956951533,7.01973523,142.46,142.4,18.64964886]
[1750956954234,12.1842154,142.46,142.4,18.64964886]
[1750956955534,5.16448017,142.45,142.39,89.4]
[1750956955730,5.16448017,142.44,142.39,89.4]
[1750956956032,5.16448017,142.45,142.39,89.4]
[1750956956220,5.16448017,142.44,142.39,89.4]
[1750956957234,5.16448017,142.43,142.39,89.4]
[1750956957534,7.02148289,142.43,142.38,18.64964886]
[1750956957718,12.18596306,142.43,142.38,18.64964886]
[1750956957907,7.02148289,142.43,142.38,18.64964886]
[1750956958112,12.18596306,142.43,142.38,18.64964886]
[1750956958336,5.16448017,142.42,142.38,18.64964886]
[1750956958832,5.16448017,142.42,142.38,25.4152165]
[1750956959035,12.18548435,142.43,142.38,25.4152165]
[1750956959212,5.16448017,142.42,142.38,25.4152165]
[1750956959412,5.16448017,142.41,142.38,25.4152165]
[1750956959613,5.16448017,142.42,142.38,25.4152165]
[1750956959824,5.16448017,142.41,142.38,25.4152165]
[1750956960020,5.16448017,142.43,142.38,25.4152165]
[1750956960213,5.16448017,142.42,142.38,25.4152165]
[1750956960428,5.16448017,142.41,142.38,18.64964886]
[1750956960609,5.16448017,142.4,142.38,18.64964886]
[1750956960812,5.16448017,142.42,142.38,108.04964886]
[1750956961025,5.16448017,142.41,142.38,108.04964886]
[1750956961225,5.16448017,142.4,142.38,108.04964886]
[1750956961432,5.25018825,142.42,142.38,108.04964886]
[1750956961634,5.25018825,142.41,142.38,108.04964886]
[1750956961935,5.25018825,142.4,142.38,108.04964886]
[1750956962135,5.25018825,142.42,142.38,108.04964886]
[1750956962315,5.25018825,142.41,142.38,108.04964886]
[1750956962514,5.25018825,142.4,142.38,108.04964886]
[1750956962715,5.25018825,142.42,142.38,108.04964886]
[1750956962965,5.25018825,142.41,142.38,114.8152165]
[1750956963133,5.25018825,142.4,142.38,114.8152165]
[1750956963440,5.25018825,142.39,142.38,108.04964886]
[1750956963618,5.25018825,142.42,142.38,108.04964886]
[1750956963820,5.25018825,142.41,142.38,114.8152165]
[1750956964024,6.47052308,142.44,142.4,18.64964886]
[1750956964225,5.25253084,142.43,142.4,108.04964886]
[1750956964440,5.25253084,142.42,142.4,108.04964886]
[1750956964742,13.49078494,142.45,142.4,108.04964886]
[1750956964935,5.25326679,142.44,142.4,108.04964886]
[1750956965243,5.25326679,142.43,142.4,108.04964886]
[1750956965440,5.25326679,142.42,142.4,108.04964886]
[1750956965643,5.25326679,142.41,142.4,108.04964886]
[1750956965846,5.25326679,142.44,142.4,108.04964886]
[1750956966044,5.25326679,142.43,142.4,108.04964886]
[1750956966256,5.25326679,142.42,142.4,108.04964886]
[1750956966545,5.25326679,142.41,142.4,108.04964886]
[1750956966712,5.25326679,142.44,142.4,108.04964886]
[1750956966918,5.25326679,142.43,142.4,108.04964886]
[1750956967120,5.25326679,142.42,142.4,108.04964886]
[1750956967337,5.25326679,142.41,142.4,108.04964886]
[1750956967955,5.25326679,142.41,142.4,89.4]
[1750956968423,5.25326679,142.41,142.38,18.64964886]
[1750956968627,5.25326679,142.4,142.38,18.64964886]
[1750956968838,5.25326679,142.39,142.38,18.64964886]
[1750956969143,5.25326679,142.41,142.38,18.64964886]
[1750956969319,5.25326679,142.4,142.38,18.64964886]
[1750956969515,5.25326679,142.39,142.38,18.64964886]
[1750956969715,5.25326679,142.41,142.38,18.64964886]
[1750956969919,5.25326679,142.4,142.38,18.64964886]
[1750956970135,5.25326679,142.39,142.38,18.64964886]
[1750956970318,5.25326679,142.41,142.38,18.64964886]
[1750956970514,5.25326679,142.4,142.38,18.64964886]
[1750956970741,5.25326679,142.39,142.37,18.64964886]
[1750956970945,5.255974,142.38,142.36,18.64964886]
[1750956971141,5.255974,142.4,142.36,18.64964886]
[1750956971316,5.255974,142.39,142.36,18.64964886]
[1750956971522,5.255974,142.38,142.36,18.64964886]
[1750956971723,5.255974,142.4,142.36,18.64964886]
[1750956972040,5.255974,142.39,142.36,18.64964886]
[1750956972233,5.255974,142.38,142.36,18.64964886]
[1750956972544,5.255974,142.4,142.36,18.64964886]
[1750956972746,5.255974,142.39,142.36,18.64964886]
[1750956972952,13.49235658,142.42,142.36,18.64964886]
[1750956973152,5.25491751,142.41,142.36,108.04964886]
[1750956973344,5.25491751,142.4,142.36,114.8152165]
[1750956973652,5.25491751,142.39,142.36,114.8152165]
[1750956973950,13.49235658,142.42,142.36,114.8152165]
[1750956974125,5.25468064,142.41,142.36,114.8152165]
[1750956974325,5.25468064,142.4,142.36,114.8152165]
[1750956974526,5.25468064,142.39,142.36,114.8152165]
[1750956974727,5.25468064,142.4,142.36,108.04964886]
[1750956975026,5.25468064,142.39,142.36,108.04964886]
[1750956975229,5.25468064,142.4,142.36,108.04964886]
[1750956975524,5.25468064,142.39,142.36,108.04964886]
[1750956975825,5.25468064,142.4,142.36,108.04964886]
[1750956976124,5.25468064,142.39,142.36,108.04964886]
[1750956976322,5.25468064,142.4,142.36,108.04964886]
[1750956976626,5.25468064,142.39,142.36,108.04964886]
[1750956976826,5.25468064,142.4,142.36,108.04964886]
[1750956977032,5.25468064,142.39,142.36,108.04964886]
[1750956977228,5.25468064,142.4,142.36,108.04964886]
[1750956977445,5.25468064,142.39,142.36,108.04964886]
[1750956977646,5.25468064,142.4,142.36,108.04964886]
[1750956977836,5.25468064,142.39,142.36,108.04964886]
[1750956978041,7.02213595,142.41,142.36,108.04964886]
[1750956978250,5.25361211,142.4,142.36,108.04964886]
[1750956978432,5.25361211,142.39,142.36,108.04964886]
[1750956978633,5.25361211,142.4,142.36,108.04964886]
[1750956978845,5.25361211,142.39,142.36,108.04964886]
[1750956979031,5.25361211,142.4,142.36,108.04964886]
[1750956979232,5.25361211,142.39,142.36,108.04964886]
[1750956979445,5.25361211,142.4,142.36,114.8152165]
[1750956979755,5.25361211,142.39,142.36,114.8152165]
[1750956980047,5.25361211,142.4,142.36,114.8152165]
[1750956980245,5.25361211,142.39,142.36,114.8152165]
[1750956980559,12.27561543,142.41,142.36,114.8152165]
[1750956980727,5.25361211,142.4,142.36,114.8152165]
[1750956980923,5.25361211,142.39,142.36,114.8152165]
[1750956981127,5.25361211,142.4,142.36,114.8152165]
[1750956981343,5.25361211,142.39,142.36,114.8152165]
[1750956981533,5.25361211,142.41,142.37,6.76556764]
[1750956981748,5.25361211,142.4,142.37,6.76556764]
[1750956982052,5.25361211,142.39,142.37,6.76556764]
[1750956982234,5.25361211,142.41,142.37,6.76556764]
[1750956982434,5.25361211,142.4,142.37,6.76556764]
[1750956982658,5.25361211,142.39,142.37,6.76556764]
[1750956982842,5.25361211,142.41,142.37,6.76556764]
[1750956983038,5.25361211,142.4,142.37,6.76556764]
[1750956983241,5.25361211,142.39,142.36,114.8152165]
[1750956983441,5.25361211,142.4,142.36,114.8152165]
[1750956983643,5.25361211,142.39,142.36,114.8152165]
[1750956983855,5.25361211,142.41,142.36,25.4152165]
[1750956984052,5.25361211,142.4,142.36,25.4152165]
[1750956984251,5.25361211,142.39,142.36,25.4152165]
[1750956984450,5.25361211,142.4,142.36,25.4152165]
[1750956984652,5.25361211,142.39,142.36,25.4152165]
[1750956984852,5.25361211,142.4,142.36,25.4152165]
[1750956985058,5.25361211,142.39,142.36,25.4152165]
[1750956985240,5.25361211,142.4,142.36,25.4152165]
[1750956985567,5.25361211,142.39,142.36,25.4152165]
[1750956985743,5.25361211,142.41,142.36,25.4152165]
[1750956985943,5.25361211,142.4,142.36,25.4152165]
[1750956986151,5.25361211,142.39,142.36,25.4152165]
[1750956986364,5.25361211,142.41,142.36,25.4152165]
[1750956986564,7.02172651,142.42,142.37,6.76556764]
[1750956986565,5.25361211,142.4,142.37,6.76556764]
[1750956986751,5.25361211,142.39,142.37,6.76556764]
[1750956986952,5.25361211,142.41,142.37,6.76556764]
[1750956987159,5.25361211,142.4,142.37,6.76556764]
[1750956987467,5.25361211,142.41,142.36,25.4152165]
[1750956987668,5.25361211,142.4,142.36,25.4152165]
[1750956987972,5.25361211,142.41,142.37,6.76556764]
[1750956988163,5.25361211,142.4,142.37,6.76556764]
[1750956988350,7.02172651,142.42,142.37,6.76556764]
[1750956988554,5.25291525,142.41,142.37,96.16556764]
[1750956988867,5.25291525,142.4,142.37,96.16556764]
[1750956989073,7.02172651,142.42,142.37,96.16556764]
[1750956989377,5.25328883,142.41,142.37,96.16556764]
[1750956989540,5.25328883,142.4,142.37,96.16556764]
[1750956989744,5.25328883,142.39,142.37,96.16556764]
[1750956989963,5.25328883,142.42,142.37,96.16556764]
[1750956990185,5.25328883,142.41,142.37,96.16556764]
[1750956990345,5.25328883,142.4,142.37,96.16556764]
[1750956990544,13.49172354,142.43,142.37,96.16556764]
[1750956990545,5.25328883,142.39,142.37,96.16556764]
[1750956990747,5.25328883,142.42,142.37,96.16556764]
[1750956990945,5.25328883,142.41,142.37,96.16556764]
[1750956991167,5.25328883,142.4,142.37,96.16556764]
[1750956991369,5.25328883,142.39,142.38,18.64964886]
[1750956991567,12.2748061,142.42,142.38,108.04964886]
[1750956991742,5.25328883,142.41,142.38,108.04964886]
[1750956991946,5.25328883,142.4,142.38,108.04964886]
[1750956992254,5.25328883,142.39,142.38,108.04964886]
[1750956992464,5.25328883,142.41,142.38,108.04964886]
[1750956992658,5.25328883,142.4,142.38,108.04964886]